lending/lending_fUSD_20250318
["ID","MTS","AMOUNT","RATE_DAILY","PERIOD"]
[356370397,1742339561877,-897.12,0.00039178,12]
[356370398,1742339561888,-500.0,0.00039178,12]
[356370399,1742339561899,-500.0,0.00039178,12]
[356370400,1742339561909,-500.0,0.00039178,12]
[356370401,1742339561919,-588.08,0.00039178,12]
[356370402,1742339561930,-385.76896129,0.00039178,12]
[356370403,1742339561941,-539.17,0.00039178,12]
[356370404,1742339561951,-332.45440708,0.00039178,12]
[356370405,1742339561962,-500.0,0.00039178,12]
[356370406,1742339561973,-2686.86,0.00039178,12]
[356370407,1742339561983,-956.37,0.00039178,12]
[356370408,1742339561994,-1521.69,0.00039178,7]
[356370409,1742339562004,-500.0,0.00039178,12]
[356370410,1742339562014,-914.58,0.00039178,12]
[356370411,1742339562024,-500.0,0.00039178,12]
[356370412,1742339562034,-537.65,0.00039178,12]
[356370413,1742339562044,-1313.1,0.00039178,12]
[356370414,1742339562054,-500.0,0.00039178,12]
[356370415,1742339562064,-894.12,0.00039178,12]
[356370416,1742339562073,-523.64,0.00039178,12]
[356370417,1742339562083,-500.0,0.00039178,12]
[356370418,1742339562093,-527.45543216,0.00039178,12]
[356370419,1742339562103,-523.91,0.00039178,12]
[356370420,1742339562113,-157.09859739,0.00039178,12]
[356370421,1742339562125,-845.67,0.00039178,12]
[356370422,1742339562135,-500.0,0.00039178,12]
[356370423,1742339562144,-1156.08,0.00039178,12]
[356370424,1742339562154,-500.0,0.00039178,12]
[356370425,1742339562164,-510.37,0.00039178,12]
[356370426,1742339562174,-655.83,0.00039178,12]
[356370427,1742339562183,-1175.67,0.00039178,12]
[356370428,1742339562193,-675.44,0.00039178,12]
[356370429,1742339562203,-584.29,0.00039178,12]
[356370430,1742339562213,-499.19304357,0.00039178,12]
[356370431,1742339562223,-535.37,0.00039178,12]
[356370432,1742339562233,-1360.65,0.00039178,12]
[356370433,1742339562243,-940.73,0.00039178,12]
[356370434,1742339562252,-500.0,0.00039178,12]
[356370435,1742339562262,-661.64,0.00039178,12]
[356370436,1742339562272,-628.6,0.00039178,12]
[356370437,1742339562282,-872.38,0.00039178,12]
[356370438,1742339562292,-671.95,0.00039178,12]
[356370439,1742339562302,-589.35,0.00039178,12]
[356370440,1742339562312,-500.0,0.00039178,12]
[356370441,1742339562322,-500.0,0.00039178,12]
[356370442,1742339562332,-2111.58,0.00039178,12]
[356370443,1742339562341,-500.0,0.00039178,12]
[356370444,1742339562350,-1118.44,0.00039178,12]
[356370445,1742339562360,-952.51,0.00039178,12]
[356370446,1742339562370,-500.0,0.00039178,12]
[356370447,1742339562380,-1141.77,0.00039178,12]
[356370448,1742339562390,-509.9,0.00039178,12]
[356370449,1742339562400,-786.29,0.00039178,12]
[356370450,1742339562410,-500.0,0.00039178,12]
[356370451,1742339562419,-885.74,0.00039178,12]
[356370452,1742339562646,-500.0,0.00039178,12]
[356370453,1742339562663,-853.02,0.00039178,12]
[356370454,1742339562677,-500.0,0.00039178,12]
[356370455,1742339562689,-500.0,0.00039178,12]
[356370456,1742339562699,-930.16,0.00039178,12]
[356370457,1742339562708,-534.99,0.00039178,12]
[356370458,1742339562717,-500.0,0.00039178,12]
[356370459,1742339562727,-554.71,0.00039178,12]
[356370460,1742339562736,-1096.04,0.00039178,12]
[356370461,1742339562746,-500.0,0.00039178,12]
[356370462,1742339562756,-669.21,0.00039178,12]
[356370463,1742339562765,-2116.57,0.00039178,12]
[356370464,1742339562775,-401.67557633,0.00039178,12]
[356370465,1742339562785,-824.59,0.00039178,12]
[356370466,1742339562796,-1273.18,0.00039178,12]
[356370467,1742339562807,-662.07,0.00039178,12]
[356370468,1742339562816,-1001.65,0.00039178,12]
[356370469,1742339562826,-865.19,0.00039178,12]
[356370470,1742339562836,-569.57,0.00039178,12]
[356370471,1742339562846,-850.25,0.00039178,12]
[356370472,1742339562856,-2025.31,0.00039178,12]
[356370473,1742339562865,-500.0,0.00039178,12]
[356370474,1742339562877,-1125.43,0.00039178,12]
[356370475,1742339562887,-1034.97,0.00039178,12]
[356370476,1742339562897,-736.13,0.00039178,12]
[356370477,1742339562906,-500.0,0.00039178,12]
[356370478,1742339562915,-500.0,0.00039178,12]
[356370479,1742339562925,-705.75,0.00039178,12]
[356370480,1742339562936,-1168.81,0.00039178,12]
[356370481,1742339562945,-500.0,0.00039178,12]
[356370482,1742339562955,-909.53,0.00039178,12]
[356370483,1742339562965,-1214.66,0.00039178,12]
[356370484,1742339562975,-750.56,0.00039178,12]
[356370485,1742339562984,-500.0,0.00039178,12]
[356370486,1742339562994,-999.43,0.00039178,12]
[356370487,1742339563003,-200.0,0.00039178,7]
[356370488,1742339563013,-912.96,0.00039178,12]
[356370489,1742339563023,-500.0,0.00039178,12]
[356370490,1742339563032,-628.87,0.00039178,12]
[356370491,1742339563041,-1022.31,0.00039178,12]
[356370492,1742339563051,-500.0,0.00039178,12]
[356370493,1742339563060,-664.59,0.00039178,12]
[356370494,1742339563068,-970.21,0.00039178,12]
[356370495,1742339563077,-1388.92,0.00039178,12]
[356370496,1742339563086,-605.69,0.00039178,12]
[356370497,1742339563095,-1253.42,0.00039178,12]
[356370498,1742339563104,-500.0,0.00039178,12]
[356370499,1742339563114,-500.0,0.00039178,12]
[356370500,1742339563123,-1024.33,0.00039178,12]
[356370501,1742339563132,-603.22,0.00039178,12]
[356370502,1742339563142,-747.21,0.00039178,12]
[356370503,1742339563151,-500.0,0.00039178,12]
[356370504,1742339563161,-500.0,0.00039178,12]
[356370505,1742339563170,-500.0,0.00039178,12]
[356370506,1742339563180,-1242.02,0.00039178,12]
[356370507,1742339563190,-843.17,0.00039178,12]
[356370508,1742339563199,-535.11,0.00039178,12]
[356370509,1742339563208,-532.91,0.00039178,12]
[356370510,1742339563218,-536.51,0.00039178,7]
[356370511,1742339563227,-864.22,0.00039178,12]
[356370512,1742339563236,-500.0,0.00039178,12]
[356370513,1742339563245,-500.0,0.00039178,12]
[356370514,1742339563255,-500.0,0.00039178,12]
[356370515,1742339563264,-1425.59,0.00039178,12]
[356370516,1742339563274,-307.72885723,0.00039178,12]
[356370517,1742339563284,-838.26,0.00039178,12]
[356370518,1742339563294,-1035.77,0.00039178,12]
[356370519,1742339563303,-1119.9,0.00039178,12]
[356370520,1742339563313,-500.0,0.00039178,12]
[356370521,1742339563322,-940.64,0.00039178,12]
[356370522,1742339563332,-500.0,0.00039178,12]
[356370523,1742339563341,-757.19,0.00039178,12]
[356370524,1742339563351,-500.0,0.00039178,12]
[356370525,1742339563360,-1602.15,0.00039178,12]
[356370526,1742339563369,-1002.8,0.00039178,12]
[356370527,1742339563379,-1331.13,0.00039178,12]
[356370528,1742339563388,-1198.43,0.00039178,12]
[356370529,1742339563398,-500.0,0.00039178,12]
[356370530,1742339563407,-500.0,0.00039178,12]
[356370531,1742339563417,-649.81,0.00039178,12]
[356370532,1742339563426,-999.15,0.00039178,12]
[356370533,1742339563437,-2598.97,0.00039178,12]
[356370534,1742339563446,-500.0,0.00039178,12]
[356370535,1742339563457,-3644.21,0.00039178,12]
[356370536,1742339563467,-500.0,0.00039178,12]
[356370537,1742339563476,-354.98091587,0.00039178,12]
[356370538,1742339563486,-1387.99,0.00039178,12]
[356370539,1742339563495,-843.24,0.00039178,12]
[356370540,1742339563504,-500.0,0.00039178,12]
[356370541,1742339563514,-2465.62,0.00039178,12]
[356370542,1742339563523,-975.0,0.00039178,12]
[356370543,1742339563532,-609.77,0.00039178,12]
[356370544,1742339563542,-974.58,0.00039178,12]
[356370545,1742339563551,-1078.91,0.00039178,12]
[356370546,1742339563561,-2236.78,0.00039178,12]
[356370547,1742339563570,-1919.16,0.00039178,12]
[356370548,1742339563580,-2066.04,0.00039178,12]
[356370549,1742339563590,-1744.56,0.00039178,12]
[356370550,1742339563600,-924.09,0.00039178,12]
[356370551,1742339563610,-965.89,0.00039178,12]
[356370552,1742339563621,-2170.13,0.00039178,7]
[356370553,1742339563631,-630.53,0.00039178,12]
[356370554,1742339563640,-500.0,0.00039178,12]
[356370555,1742339563650,-500.0,0.00039178,12]
[356370556,1742339563659,-4236.85,0.00039178,12]
[356370557,1742339563669,-701.55,0.00039178,12]
[356370558,1742339563678,-2364.63,0.00039178,12]
[356370559,1742339563688,-2071.16,0.00039178,12]
[356370560,1742339563697,-940.24,0.00039178,12]
[356370561,1742339563707,-1084.3,0.00039178,12]
[356370562,1742339563717,-833.55,0.00039178,12]
[356370563,1742339563727,-1166.33,0.00039178,12]
[356370564,1742339563736,-1018.16,0.00039178,12]
[356370565,1742339563746,-187.67890008,0.00039178,12]
[356370566,1742339563756,-3791.02,0.00039178,12]
[356370567,1742339563765,-722.87,0.00039178,12]
[356370568,1742339563774,-591.18,0.00039178,12]
[356370569,1742339563784,-627.35,0.00039178,12]
[356370570,1742339563795,-2218.35,0.00039178,12]
[356370571,1742339563806,-433.99,0.00039178,12]
[356370572,1742339563815,-500.0,0.00039178,12]
[356370573,1742339563824,-2207.71,0.00039178,12]
[356370574,1742339563833,-1038.13,0.00039178,12]
[356370575,1742339563843,-7286.97,0.00039178,2]
[356370576,1742339563853,-500.0,0.00039178,12]
[356370577,1742339563862,-4093.1,0.00039178,12]
[356370578,1742339563871,-662.54,0.00039178,12]
[356370579,1742339563881,-617.61,0.00039178,12]
[356370580,1742339563891,-884.25,0.00039178,12]
[356370581,1742339563900,-2314.16,0.00039178,12]
[356370582,1742339563909,-1249.76,0.00039178,12]
[356370583,1742339563918,-590.8,0.00039178,12]
[356370584,1742339563927,-568.35,0.00039178,12]
[356370585,1742339563936,-605.74,0.00039178,12]
[356370586,1742339563946,-4019.27,0.00039178,12]
[356370587,1742339563956,-845.44,0.00039178,12]
[356370588,1742339563965,-1263.79,0.00039178,12]
[356370589,1742339563975,-500.0,0.00039178,12]
[356370590,1742339563984,-500.0,0.00039178,12]
[356370591,1742339563993,-722.51,0.00039178,12]
[356370592,1742339564002,-841.11,0.00039178,12]
[356370593,1742339564012,-582.04,0.00039178,12]
[356370594,1742339564021,-1473.86,0.00039178,12]
[356370595,1742339564031,-713.87,0.00039178,12]
[356370596,1742339564040,-500.0,0.00039178,12]
[356370597,1742339564050,-1361.67,0.00039178,12]
[356370598,1742339564059,-1912.63,0.00039178,12]
[356370599,1742339564068,-714.31,0.00039178,12]
[356370600,1742339564077,-635.53,0.00039178,12]
[356370601,1742339564087,-1883.04,0.00039178,12]
[356370602,1742339564096,-500.0,0.00039178,12]
[356370603,1742339564105,-5988.8,0.00039178,12]
[356370604,1742339564114,-500.0,0.00039178,12]
[356370605,1742339564123,-2180.97,0.00039178,10]
[356370606,1742339564133,-1955.72,0.00039178,12]
[356370607,1742339564143,-6906.57,0.00039178,12]
[356370608,1742339564153,-2131.38,0.00039178,12]
[356370609,1742339564164,-713.4,0.00039178,12]
[356370610,1742339564173,-1357.37,0.00039178,12]
[356370611,1742339564183,-758.94,0.00039178,12]
[356370612,1742339564193,-500.0,0.00039178,12]
[356370613,1742339564203,-517.02,0.00039178,12]
[356370614,1742339564219,-1496.75,0.00039178,12]
[356370615,1742339564238,-1214.53,0.00039178,12]
[356370616,1742339564257,-500.0,0.00039178,12]
[356370617,1742339564275,-500.0,0.00039178,12]
[356370618,1742339564290,-2414.38,0.00039178,12]
[356370619,1742339564307,-1375.9,0.00039178,12]
[356370620,1742339564324,-500.0,0.00039178,12]
[356370621,1742339564342,-1974.79,0.00039178,12]
[356370622,1742339564361,-925.56,0.00039178,12]
[356370623,1742339564377,-839.12,0.00039178,12]
[356370624,1742339564395,-712.94,0.00039178,12]
[356370625,1742339564411,-1067.84,0.00039178,12]
[356370626,1742339564424,-767.88,0.00039178,12]
[356370627,1742339564442,-1426.33,0.00039178,12]
[356370628,1742339564454,-1432.86,0.00039178,12]
[356370629,1742339564470,-780.68,0.00039178,12]
[356370630,1742339564485,-1216.8,0.00039178,12]
[356370631,1742339564501,-1487.69,0.00039178,12]
[356370632,1742339564515,-384.72576571,0.00039178,12]
[356370633,1742339564533,-1708.8,0.00039178,12]
[356370634,1742339564547,-500.0,0.00039178,12]
[356370635,1742339564562,-674.04,0.00039178,12]
[356370636,1742339564577,-1017.99,0.00039178,12]
[356370637,1742339564592,-913.22,0.00039178,12]
[356370638,1742339564606,-1929.03,0.00039178,12]
[356370639,1742339564620,-2290.36,0.00039178,12]
[356370640,1742339564636,-902.37,0.00039178,12]
[356370641,1742339564652,-1430.23,0.00039178,12]
[356370642,1742339564668,-1072.64,0.00039178,12]
[356370643,1742339564685,-1760.11,0.00039178,12]
[356370644,1742339564704,-1638.63,0.00039178,12]
[356370645,1742339564720,-794.12,0.00039178,12]
[356370646,1742339564737,-682.57,0.00039178,12]
[356370647,1742339564753,-1045.11,0.00039178,12]
[356370648,1742339564769,-500.0,0.00039178,12]
[356370649,1742339564784,-1729.5,0.00039178,12]
[356370650,1742339564802,-500.0,0.00039178,12]
[356370651,1742339564819,-1395.45,0.00039178,12]
[356370652,1742339564833,-1432.26,0.00039178,12]
[356370653,1742339564851,-1231.14,0.00039178,12]
[356370654,1742339564868,-1130.18,0.00039178,12]
[356370655,1742339564885,-500.0,0.00039178,12]
[356370656,1742339564901,-1071.53,0.00039178,12]
[356370657,1742339564918,-10881.54,0.00039178,12]
[356370658,1742339564932,-940.53,0.00039178,12]
[356370659,1742339564948,-931.98,0.00039178,12]
[356370660,1742339564963,-643.93,0.00039178,12]
[356370661,1742339564979,-736.61,0.00039178,12]
[356370662,1742339564995,-1889.22,0.00039178,12]
[356370663,1742339565012,-500.0,0.00039178,12]
[356370664,1742339565028,-1912.43,0.00039178,12]
[356370665,1742339565044,-500.0,0.00039178,12]
[356370666,1742339565060,-867.89,0.00039178,12]
[356370667,1742339565076,-655.9,0.00039178,12]
[356370668,1742339565093,-3492.09,0.00039178,12]
[356370669,1742339565109,-8347.58,0.00039178,12]
[356370670,1742339565124,-982.97,0.00039178,12]
[356370671,1742339565139,-793.27,0.00039178,12]
[356370672,1742339565154,-500.0,0.00039178,12]
[356370673,1742339565170,-2617.2,0.00039178,12]
[356370674,1742339565185,-500.0,0.00039178,12]
[356370675,1742339565200,-674.83,0.00039178,12]
[356370676,1742339565214,-2613.79,0.00039178,12]
[356370677,1742339565229,-1198.65,0.00039178,12]
[356370678,1742339565244,-1104.92,0.00039178,12]
[356370679,1742339565258,-500.0,0.00039178,12]
[356370680,1742339565273,-500.0,0.00039178,12]
[356370681,1742339565288,-1000.0,0.00039178,12]
[356370682,1742339565302,-1351.56,0.00039178,12]
[356370683,1742339565317,-500.0,0.00039178,12]
[356370684,1742339565331,-573.24,0.00039178,12]
[356370685,1742339565346,-1155.96,0.00039178,12]
[356370686,1742339565359,-592.77,0.00039178,12]
[356370687,1742339565374,-819.5,0.00039178,12]
[356370688,1742339565388,-881.57,0.00039178,12]
[356370689,1742339565403,-733.05,0.00039178,12]
[356370690,1742339565418,-566.73,0.00039178,12]
[356370691,1742339565432,-678.37,0.00039178,12]
[356370692,1742339565448,-1747.47,0.00039178,12]
[356370693,1742339565463,-779.59,0.00039178,12]
[356370694,1742339565477,-700.61,0.00039178,12]
[356370695,1742339565492,-500.0,0.00039178,12]
[356370696,1742339565506,-6201.97,0.00039178,12]
[356370697,1742339565521,-2724.32,0.00039178,12]
[356370698,1742339565535,-673.71,0.00039178,12]
[356370699,1742339565550,-500.0,0.00039178,6]
[356370700,1742339565565,-634.03,0.00039178,12]
[356370701,1742339565580,-1388.66,0.00039178,12]
[356370702,1742339565594,-1201.66,0.00039178,12]
[356370703,1742339565608,-789.17,0.00039178,12]
[356370704,1742339565623,-500.0,0.00039178,12]
[356370705,1742339565637,-765.41,0.00039178,12]
[356370706,1742339565653,-637.48,0.00039178,12]
[356370707,1742339565668,-1408.89,0.00039178,12]
[356370708,1742339565683,-500.0,0.00039178,12]
[356370709,1742339565697,-1079.25,0.00039178,12]
[356370710,1742339565712,-500.0,0.00039178,12]
[356370711,1742339565727,-629.47,0.00039178,12]
[356370712,1742339565742,-500.0,0.00039178,12]
[356370713,1742339565757,-500.0,0.00039178,12]
[356370714,1742339565771,-500.0,0.00039178,12]
[356370715,1742339565786,-2483.39,0.00039178,12]
[356370716,1742339565801,-500.0,0.00039178,12]
[356370717,1742339565817,-818.98,0.00039178,12]
[356370718,1742339565832,-8678.86,0.00039178,12]
[356370719,1742339565848,-500.0,0.00039178,12]
[356370720,1742339565863,-500.0,0.00039178,12]
[356370721,1742339565879,-1387.5,0.00039178,12]
[356370722,1742339565894,-852.66,0.00039178,12]
[356370723,1742339565909,-609.81,0.00039178,12]
[356370724,1742339565924,-1940.56,0.00039178,12]
[356370725,1742339565939,-5124.49,0.00039178,12]
[356370726,1742339565954,-500.0,0.00039178,12]
[356370727,1742339565969,-982.22,0.00039178,12]
[356370728,1742339565983,-848.28,0.00039178,12]
[356370729,1742339565998,-555.67,0.00039178,12]
[356370730,1742339566013,-500.0,0.00039178,12]
[356370731,1742339566028,-610.21,0.00039178,12]
[356370732,1742339566043,-797.64,0.00039178,12]
[356370733,1742339566057,-1404.74,0.00039178,12]
[356370734,1742339566072,-570.46,0.00039178,12]
[356370735,1742339566086,-626.53,0.00039178,12]
[356370736,1742339566101,-1037.27,0.00039178,12]
[356370737,1742339566116,-2051.57,0.00039178,12]
[356370738,1742339566130,-1010.64,0.00039178,12]
[356370739,1742339566145,-500.0,0.00039178,12]
[356370740,1742339566161,-517.9,0.00039178,12]
[356370741,1742339566176,-698.57,0.00039178,12]
[356370742,1742339566190,-753.9,0.00039178,12]
[356370743,1742339566205,-976.72,0.00039178,12]
[356370744,1742339566220,-810.35,0.00039178,12]
[356370745,1742339566235,-816.08,0.00039178,12]
[356370746,1742339566249,-1763.99,0.00039178,12]
[356370747,1742339566263,-587.88910608,0.00039178,12]
[356370748,1742339566277,-807.5,0.00039178,12]
[356370749,1742339566291,-974.77,0.00039178,12]
[356370750,1742339566306,-1119.31,0.00039178,12]
[356370751,1742339566321,-500.0,0.00039178,12]
[356370752,1742339566336,-1305.41,0.00039178,12]
[356370753,1742339566350,-764.52,0.00039178,12]
[356370754,1742339566365,-1054.67,0.00039178,12]
[356370755,1742339566379,-636.48,0.00039178,12]
[356370756,1742339566393,-697.71,0.00039178,12]
[356370757,1742339566407,-784.0,0.00039178,12]
[356370758,1742339566421,-871.68,0.00039178,12]
[356370759,1742339566436,-500.0,0.00039178,12]
[356370760,1742339566452,-1505.16,0.00039178,12]
[356370761,1742339566467,-500.0,0.00039178,12]
[356370762,1742339566482,-500.0,0.00039178,12]
[356370763,1742339566497,-3544.19,0.00039178,12]
[356370764,1742339566511,-500.0,0.00039178,12]
[356370765,1742339566525,-3375.24,0.00039178,12]
[356370766,1742339566546,-1054.74,0.00039178,12]
[356370767,1742339566560,-1877.16,0.00039178,12]
[356370768,1742339566575,-500.0,0.00039178,12]
[356370769,1742339566589,-1691.18,0.00039178,12]
[356370770,1742339566604,-517.11,0.00039178,12]
[356370771,1742339566619,-1000.0,0.00039178,4]
[356370772,1742339566633,-151.031805,0.00039198,120]
[356370773,1742339566648,-258.42,0.00039236,2]
[356370774,1742339566662,-1657.99266,0.00039288,30]
[356370775,1742339566677,-1000.0,0.00039315,4]
[356370776,1742339566692,-151.031817,0.00039398,120]
[356370777,1742339566707,-200.0,0.000394,120]
[356370778,1742339566721,-857.44,0.00039431,2]
[356370779,1742339566736,-500.0,0.00039452,12]
[356370780,1742339566751,-660.95,0.00039452,12]
[356370781,1742339566766,-500.0,0.00039452,12]
[356370782,1742339567066,-1089.18,0.00039452,12]
[356370783,1742339567101,-1280.18,0.00039452,12]
[356370784,1742339567111,-705.65,0.00039452,12]
[356370785,1742339567120,-500.0,0.00039452,12]
[356370786,1742339567129,-500.0,0.00039452,12]
[356370787,1742339567139,-839.95,0.00039452,12]
[356370788,1742339567148,-500.0,0.00039452,12]
[356370789,1742339567157,-586.59,0.00039452,12]
[356370790,1742339567167,-500.0,0.00039452,12]
[356370791,1742339567177,-659.86,0.00039452,12]
[356370792,1742339567186,-500.0,0.00039452,12]
[356370793,1742339567197,-500.0,0.00039452,12]
[356370794,1742339567206,-781.58,0.00039452,12]
[356370795,1742339567216,-500.0,0.00039452,12]
[356370796,1742339567225,-578.43,0.00039452,12]
[356370797,1742339567235,-716.41,0.00039452,12]
[356370798,1742339567244,-500.0,0.00039452,12]
[356370799,1742339567254,-875.76,0.00039452,12]
[356370800,1742339567263,-500.0,0.00039452,12]
[356370801,1742339567273,-500.0,0.00039452,12]
[356370802,1742339567282,-345.73933956,0.00039452,12]
[356370803,1742339567291,-1293.1,0.00039452,12]
[356370804,1742339567301,-554.73,0.00039452,12]
[356370805,1742339567310,-500.0,0.00039452,12]
[356370806,1742339567319,-500.0,0.00039452,12]
[356370807,1742339567328,-887.4,0.00039452,12]
[356370808,1742339567337,-933.35,0.00039452,12]
[356370809,1742339567346,-645.27,0.00039452,12]
[356370810,1742339567355,-1270.34,0.00039452,12]
[356370811,1742339567364,-635.6,0.00039452,12]
[356370812,1742339567373,-546.63,0.00039452,12]
[356370813,1742339567383,-500.0,0.00039452,12]
[356370814,1742339567392,-500.0,0.00039452,12]
[356370815,1742339567401,-1007.61,0.00039452,12]
[356370816,1742339567411,-616.02,0.00039452,12]
[356370817,1742339567420,-686.76,0.00039452,12]
[356370818,1742339567429,-500.0,0.00039452,12]
[356370819,1742339567440,-500.0,0.00039452,12]
[356370820,1742339567450,-531.32,0.00039452,12]
[356370821,1742339567459,-500.0,0.00039452,12]
[356370822,1742339567468,-601.48,0.00039452,12]
[356370823,1742339567478,-567.63,0.00039452,12]
[356370824,1742339567487,-963.46,0.00039452,12]
[356370825,1742339567497,-500.0,0.00039452,12]
[356370826,1742339567506,-815.63,0.00039452,12]
[356370827,1742339567516,-500.0,0.00039452,12]
[356370828,1742339567525,-500.0,0.00039452,12]
[356370829,1742339567535,-500.0,0.00039452,12]
[356370830,1742339567544,-500.0,0.00039452,12]
[356370831,1742339567554,-500.37,0.00039452,12]
[356370832,1742339567563,-546.76,0.00039452,12]
[356370833,1742339567572,-500.0,0.00039452,12]
[356370834,1742339567582,-500.0,0.00039452,12]
[356370835,1742339567591,-599.5,0.00039452,12]
[356370836,1742339567603,-729.58,0.00039452,12]
[356370837,1742339567613,-922.39,0.00039452,12]
[356370838,1742339567623,-1163.14,0.00039452,12]
[356370839,1742339567633,-875.92,0.00039452,30]
[356370840,1742339567644,-750.87,0.00039452,12]
[356370841,1742339567655,-1410.05,0.00039452,12]
[356370842,1742339567665,-510.0,0.00039452,12]
[356370843,1742339567675,-541.9,0.00039452,12]
[356370844,1742339567684,-2100.21,0.00039452,12]
[356370845,1742339567694,-500.0,0.00039452,12]
[356370846,1742339567703,-819.72,0.00039452,12]
[356370847,1742339567713,-868.85,0.00039452,12]
[356370848,1742339567722,-163.344036,0.00039452,12]
[356370849,1742339567732,-500.0,0.00039452,12]
[356370850,1742339567742,-832.99,0.00039452,12]
[356370851,1742339567752,-632.76074513,0.00039452,12]
[356370852,1742339567763,-500.0,0.00039452,12]
[356370853,1742339567774,-1487.67,0.00039452,12]
[356370854,1742339567783,-1565.380344,0.00039452,12]
[356370855,1742339567794,-500.0,0.00039452,12]
[356370856,1742339567806,-156.823057,0.00039452,12]
[356370857,1742339567816,-728.98,0.00039452,12]
[356370858,1742339567825,-915.45,0.00039452,12]
[356370859,1742339567835,-523.14,0.00039452,12]
[356370860,1742339567845,-500.0,0.00039452,12]
[356370861,1742339567855,-500.0,0.00039452,12]
[356370862,1742339567864,-500.0,0.00039452,12]
[356370863,1742339567874,-415.53198,0.00039452,12]
[356370864,1742339567884,-500.0,0.00039452,12]
[356370865,1742339567894,-571.54,0.00039452,12]
[356370866,1742339567904,-547.0,0.00039452,12]
[356370867,1742339567914,-500.0,0.00039452,12]
[356370868,1742339567926,-1579.021524,0.00039452,12]
[356370869,1742339567935,-540.14,0.00039452,12]
[356370870,1742339567946,-500.0,0.00039452,12]
[356370871,1742339567956,-507.06,0.00039452,12]
[356370872,1742339567966,-461.82464123,0.00039452,12]
[356370873,1742339567976,-500.0,0.00039452,12]
[356370874,1742339567985,-1406.95,0.00039452,12]
[356370875,1742339567995,-1265.92,0.00039452,12]
[356370876,1742339568005,-583.92,0.00039452,12]
[356370877,1742339568014,-819.59,0.00039452,12]
[356370878,1742339568025,-500.0,0.00039452,12]
[356370879,1742339568035,-500.0,0.00039452,12]
[356370880,1742339568044,-1112.86,0.00039452,12]
[356370881,1742339568054,-500.0,0.00039452,12]
[356370882,1742339568063,-849.05,0.00039452,12]
[356370883,1742339568072,-610.12,0.00039452,12]
[356370884,1742339568082,-500.0,0.00039452,12]
[356370885,1742339568091,-500.0,0.00039452,12]
[356370886,1742339568101,-966.8,0.00039452,12]
[356370887,1742339568110,-562.17,0.00039452,12]
[356370888,1742339568120,-500.0,0.00039452,12]
[356370889,1742339568130,-500.0,0.00039452,12]
[356370890,1742339568139,-500.0,0.00039452,12]
[356370891,1742339568149,-500.0,0.00039452,12]
[356370892,1742339568158,-565.83,0.00039452,12]
[356370893,1742339568168,-897.12,0.00039452,12]
[356370894,1742339568177,-500.0,0.00039452,12]
[356370895,1742339568187,-500.0,0.00039452,12]
[356370896,1742339568198,-500.0,0.00039452,12]